fUSD/lending_fUSD_20241219
["ID","MTS","AMOUNT","RATE_DAILY","PERIOD"]
[346036374,1734649832468,-500.0,0.00023891,4]
[346036375,1734649832477,-500.0,0.00023891,4]
[346036376,1734649832486,-500.0,0.00023891,4]
[346036377,1734649832495,-500.0,0.00023891,4]
[346036378,1734649832505,-524.12,0.00023891,4]
[346036379,1734649832514,-1194.58,0.00023891,4]
[346036380,1734649832524,-251.39,0.00023891,4]
[346036381,1734649832533,-500.0,0.00023891,4]
[346036382,1734649832543,-500.0,0.00023891,4]
[346036383,1734649832552,-500.0,0.00023892,4]
[346036384,1734649832561,-500.0,0.00023892,4]
[346036385,1734649832570,-524.49,0.00023892,4]
[346036386,1734649832580,-500.0,0.00023892,4]
[346036387,1734649832589,-540.53,0.00023892,4]
[346036388,1734649832599,-500.0,0.00023892,4]
[346036389,1734649832608,-500.0,0.00023892,4]
[346036390,1734649832618,-2595.8,0.00023892,4]
[346036391,1734649832628,-500.0,0.00023892,4]
[346036392,1734649832637,-500.0,0.00023892,4]
[346036393,1734649832650,-500.0,0.00023892,4]
[346036394,1734649832659,-500.0,0.00023892,4]
[346036395,1734649832669,-500.0,0.00023892,4]
[346036396,1734649832679,-711.63,0.00023892,4]
[346036397,1734649832689,-753.5179,0.00023899,2]
[346036398,1734649832699,-500.0,0.00023899,4]
[346036399,1734649832708,-500.0,0.00023899,4]
[346036400,1734649832717,-237.63,0.00023899,4]
[346036401,1734649832727,-500.0,0.00023899,4]
[346036402,1734649832736,-500.0,0.00023899,4]
[346036403,1734649832746,-500.0,0.00023899,4]
[346036404,1734649832755,-500.0,0.00023899,4]
[346036405,1734649832765,-490.382884,0.00023899,4]
[346036406,1734649832775,-500.0,0.00023899,4]
[346036407,1734649832784,-509.14,0.00023899,4]
[346036408,1734649832794,-500.0,0.00023899,4]
[346036409,1734649832803,-500.0,0.00023899,4]
[346036410,1734649832813,-500.0,0.00023899,4]
[346036411,1734649832823,-469.64729691,0.00023899,4]
[346036412,1734649832833,-453.71243885,0.00023899,4]
[346036413,1734649832844,-500.0,0.00023899,4]
[346036414,1734649832854,-184.7483126,0.00023899,4]
[346036415,1734649832863,-500.0,0.00023899,4]
[346036416,1734649832872,-500.0,0.00023899,4]
[346036417,1734649832882,-500.0,0.00023899,4]
[346036418,1734649832892,-588.85,0.00023899,4]
[346036419,1734649832901,-500.0,0.00023899,4]
[346036420,1734649832911,-500.0,0.00023899,4]
[346036421,1734649832920,-500.0,0.00023899,4]
[346036422,1734649832929,-438.31376256,0.00023899,4]
[346036423,1734649832939,-500.0,0.00023899,4]
[346036424,1734649832949,-500.0,0.00023899,4]
[346036425,1734649832959,-500.0,0.00023899,4]
[346036426,1734649832968,-500.0,0.00023899,4]
[346036427,1734649832978,-500.0,0.00023899,4]
[346036428,1734649832987,-500.0,0.00023899,4]
[346036429,1734649832996,-500.0,0.00023899,4]
[346036430,1734649833005,-500.0,0.00023899,4]
[346036431,1734649833015,-500.0,0.00023899,4]
[346036432,1734649833024,-500.0,0.00023899,4]
[346036433,1734649833035,-500.0,0.00023899,4]
[346036434,1734649833044,-500.0,0.00023899,4]
[346036435,1734649833054,-419.59320876,0.00023899,4]
[346036436,1734649833064,-500.0,0.00023899,4]
[346036437,1734649833074,-500.0,0.00023899,4]
[346036438,1734649833084,-506.42,0.00023899,4]
[346036439,1734649833095,-500.0,0.00023899,4]
[346036440,1734649833105,-626.69,0.00023899,4]
[346036441,1734649833115,-639.31,0.00023899,4]
[346036442,1734649833125,-500.0,0.00023899,4]
[346036443,1734649833135,-500.0,0.00023899,4]
[346036444,1734649833146,-585.08,0.00023899,4]
[346036445,1734649833156,-500.0,0.00023899,4]
[346036446,1734649833165,-351.9030351,0.00023899,4]
[346036447,1734649833175,-500.0,0.00023899,4]
[346036448,1734649833185,-500.0,0.00023899,4]
[346036449,1734649833195,-500.0,0.00023899,4]
[346036450,1734649833205,-500.0,0.00023899,4]
[346036451,1734649833215,-500.0,0.00023899,4]
[346036452,1734649833225,-500.0,0.00023899,4]
[346036453,1734649833234,-500.0,0.00023899,4]
[346036454,1734649833246,-562.3,0.00023899,4]
[346036455,1734649833255,-500.0,0.00023899,4]
[346036456,1734649833265,-500.0,0.00023899,4]
[346036457,1734649833275,-590.13,0.00023899,4]
[346036458,1734649833285,-500.0,0.00023899,4]
[346036459,1734649833295,-500.0,0.00023899,4]
[346036460,1734649833305,-500.0,0.00023899,4]
[346036461,1734649833315,-500.0,0.00023899,4]
[346036462,1734649833325,-500.0,0.00023899,4]
[346036463,1734649833335,-500.0,0.00023899,4]
[346036464,1734649833346,-546.44,0.00023899,4]
[346036465,1734649833356,-500.0,0.00023899,4]
[346036466,1734649833370,-500.0,0.00023899,4]
[346036467,1734649833380,-500.0,0.00023899,4]
[346036468,1734649833390,-500.0,0.00023899,4]
[346036469,1734649833400,-500.0,0.00023899,4]
[346036470,1734649833410,-500.0,0.00023899,4]
[346036471,1734649833420,-500.0,0.00023899,4]
[346036472,1734649833429,-500.0,0.00023899,4]
[346036473,1734649833440,-500.0,0.00023899,4]
[346036474,1734649833449,-500.0,0.00023899,4]
[346036475,1734649833459,-500.0,0.00023899,4]
[346036476,1734649833469,-500.0,0.00023899,4]
[346036477,1734649833479,-500.0,0.00023899,4]
[346036478,1734649833488,-500.0,0.00023899,4]
[346036479,1734649833498,-500.0,0.00023899,4]
[346036480,1734649833508,-500.0,0.00023899,4]
[346036481,1734649833518,-500.0,0.00023899,4]
[346036482,1734649833528,-500.0,0.00023899,4]
[346036483,1734649833538,-500.0,0.00023899,4]
[346036484,1734649833547,-500.0,0.00023899,4]
[346036485,1734649833557,-500.0,0.00023899,4]
[346036486,1734649833567,-500.0,0.00023899,4]
[346036487,1734649833577,-500.0,0.00023899,4]
[346036488,1734649833588,-500.0,0.00023899,4]
[346036489,1734649833599,-500.0,0.00023899,4]
[346036490,1734649833610,-500.0,0.00023899,4]
[346036491,1734649833621,-500.0,0.00023899,4]
[346036492,1734649833631,-500.0,0.00023899,4]
[346036493,1734649833641,-500.0,0.00023899,4]
[346036494,1734649833652,-607.12,0.00023899,4]
[346036495,1734649833663,-500.0,0.00023899,4]
[346036496,1734649833673,-500.0,0.00023899,4]
[346036497,1734649833683,-500.0,0.00023899,4]
[346036498,1734649833693,-500.0,0.00023899,4]
[346036499,1734649833704,-500.0,0.00023899,4]
[346036500,1734649833714,-500.0,0.00023899,4]
[346036501,1734649833724,-500.0,0.00023899,4]
[346036502,1734649833734,-500.0,0.00023899,4]
[346036503,1734649833746,-500.0,0.00023899,4]
[346036504,1734649833756,-304.5641478,0.00023899,4]
[346036505,1734649833766,-512.85,0.00023899,4]
[346036506,1734649833775,-500.0,0.00023899,4]
[346036507,1734649833786,-500.0,0.00023899,4]
[346036508,1734649833796,-500.0,0.00023899,4]
[346036509,1734649833805,-483.9870538,0.00023899,4]
[346036510,1734649833821,-16.0129462,0.00023899,4]
[346036511,1734649833830,-268.86697688,0.00023899,4]
[346036512,1734649833843,-231.13302312,0.00023899,4]
[346036513,1734649833852,-415.66697708,0.00023899,4]
[346036514,1734649833864,-84.33302292,0.00023899,4]
[346036515,1734649833874,-500.0,0.00023899,4]
[346036516,1734649833883,-202.47977776,0.00023899,4]
[346036517,1734649833895,-297.52022224,0.00023899,4]
[346036518,1734649833904,-500.0,0.00023899,4]
[346036519,1734649833914,-500.0,0.00023899,4]
[346036520,1734649833923,-534.62147366,0.00023899,4]
[346036521,1734649833935,-85.79852634,0.00023899,4]
[346036522,1734649833945,-500.0,0.00023899,4]
[346036523,1734649833954,-500.0,0.00023899,4]
[346036524,1734649833964,-773.66504984,0.00023899,4]
[346036525,1734649833976,-48.91495016,0.00023899,4]
[346036526,1734649833985,-806.22,0.00023899,4]
[346036527,1734649833995,-500.0,0.00023899,4]
[346036528,1734649834004,-500.0,0.00023899,4]
[346036529,1734649834014,-168.60894107,0.00023899,4]
[346036530,1734649834025,-331.39105893,0.00023899,4]
[346036531,1734649834035,-500.0,0.00023899,4]
[346036532,1734649834044,-500.0,0.00023899,4]
[346036533,1734649834054,-224.09359185,0.00023899,4]
[346036534,1734649834158,-767.85640815,0.00023899,4]
[346036535,1734649834168,-500.0,0.00023899,4]
[346036536,1734649834177,-1009.14359185,0.00023899,4]
[346036537,1734649834189,-56.23640815,0.00023899,4]
[346036538,1734649834199,-500.0,0.00023899,4]
[346036539,1734649834209,-500.0,0.00023899,4]
[346036540,1734649834218,-211.26948798,0.00023899,4]
[346036541,1734649834230,-288.73051202,0.00023899,4]
[346036542,1734649834240,-500.0,0.00023899,4]
[346036543,1734649834250,-500.0,0.00023899,4]
[346036544,1734649834260,-500.0,0.00023899,4]
[346036545,1734649834269,-491.40910068,0.00023899,4]
[346036546,1734649834281,-8.59089932,0.00023899,4]
[346036547,1734649834291,-796.0041953,0.00023899,4]
[346036548,1734649834303,-351.1258047,0.00023899,4]
[346036549,1734649834313,-36.5191953,0.00023899,4]
[346036551,1734649837549,-463.4808047,0.00023899,4]
[346036552,1734649837559,-500.0,0.00023899,4]
[346036553,1734649837568,-500.0,0.00023899,4]
[346036554,1734649837578,-464.61512832,0.00023899,4]
[346036555,1734649837588,-500.0,0.00023899,4]
[346036556,1734649837597,-500.0,0.00023899,4]
[346036557,1734649837607,-500.0,0.00023899,4]
[346036558,1734649837618,-500.0,0.00023899,4]
[346036559,1734649837627,-500.0,0.00023899,4]
[346036560,1734649837637,-500.0,0.00023899,4]
[346036561,1734649837646,-500.0,0.00023899,4]
[346036562,1734649837655,-500.0,0.00023899,4]
[346036563,1734649837664,-500.0,0.00023899,4]
[346036564,1734649837674,-500.0,0.00023899,4]
[346036565,1734649837683,-500.0,0.00023899,4]
[346036566,1734649837692,-500.0,0.00023899,4]
[346036567,1734649837701,-500.0,0.00023899,4]
[346036568,1734649837710,-500.0,0.00023899,4]
[346036569,1734649837720,-500.0,0.00023899,4]
[346036570,1734649837729,-1084.90406698,0.00023899,4]
[346036571,1734649837741,-1724.02593302,0.00023899,4]
[346036572,1734649837751,-526.86,0.00023899,4]
[346036573,1734649837760,-500.0,0.00023899,4]
[346036574,1734649837770,-500.0,0.00023899,4]
[346036575,1734649837780,-500.0,0.00023899,4]
[346036576,1734649837789,-500.0,0.00023899,4]
[346036577,1734649837799,-946.11,0.00023899,4]
[346036578,1734649837809,-569.9,0.00023899,4]
[346036579,1734649837818,-500.0,0.00023899,4]
[346036580,1734649837827,-500.0,0.00023899,4]
[346036581,1734649837836,-612.54,0.00023899,4]
[346036582,1734649837846,-500.0,0.00023899,4]
[346036583,1734649837858,-500.0,0.00023899,4]
[346036584,1734649837868,-500.0,0.00023899,4]
[346036585,1734649837878,-666.17,0.00023899,4]
[346036586,1734649837888,-500.0,0.00023899,4]
[346036587,1734649837900,-24758.28137155,0.000239,2]
[346036588,1734649837912,-48865.38672845,0.000239,2]
[346036589,1734649837922,-6269.2931,0.000239,2]
[346036590,1734649837932,-166.60393875,0.000239,2]
[346036591,1734649837942,-257.36945627,0.000239,2]
[346036592,1734649837951,-1500.0,0.000239,8]
[346036593,1734649837961,-1014.82051157,0.000239,2]
[346036594,1734649837970,-946.41205355,0.000239,2]
[346036595,1734649837980,-15760.25074111,0.00023903,2]
[346036596,1734649837990,-506.10673613,0.00023957,2]
[346036597,1734649837999,-718.55,0.00023972,4]
[346036598,1734649838008,-500.0,0.00023972,4]
[346036599,1734649838018,-606.85,0.00023972,4]
[346036600,1734649838027,-415.52,0.00023972,4]
[346036601,1734649838037,-500.0,0.00023972,4]
[346036602,1734649838046,-289.09058701,0.00023972,4]
[346036603,1734649838057,-500.0,0.00023972,4]
[346036604,1734649838067,-500.0,0.00023972,4]
[346036605,1734649838077,-500.0,0.00023972,4]
[346036606,1734649838087,-281.2,0.00023972,4]
[346036607,1734649838097,-500.0,0.00023972,4]
[346036608,1734649838113,-500.0,0.00023972,4]
[346036609,1734649838124,-500.0,0.00023972,4]
[346036610,1734649838133,-500.0,0.00023972,4]
[346036611,1734649838143,-500.0,0.00023972,4]
[346036612,1734649838153,-500.0,0.00023972,4]
[346036613,1734649838163,-500.0,0.00023972,4]
[346036614,1734649838172,-500.0,0.00023972,4]
[346036615,1734649838182,-500.0,0.00023972,4]
[346036616,1734649838191,-500.0,0.00023972,4]
[346036617,1734649838200,-500.0,0.00023972,4]
[346036618,1734649838210,-500.0,0.00023972,4]
[346036619,1734649838219,-500.0,0.00023972,4]
[346036620,1734649838229,-500.0,0.00023972,4]
[346036621,1734649838238,-500.0,0.00023972,4]
[346036622,1734649838248,-500.0,0.00023972,4]
[346036623,1734649838258,-500.0,0.00023972,4]
[346036624,1734649838267,-500.0,0.00023972,4]
[346036625,1734649838277,-500.0,0.00023972,4]
[346036626,1734649838286,-500.0,0.00023972,4]
[346036627,1734649838295,-500.0,0.00023972,4]
[346036628,1734649838304,-500.0,0.00023972,4]
[346036629,1734649838314,-500.0,0.00023972,4]
[346036630,1734649838324,-500.0,0.00023972,4]
[346036631,1734649838334,-500.0,0.00023972,4]
[346036632,1734649838343,-1000.0,0.00023972,5]
[346036633,1734649838357,-500.0,0.00023972,4]
[346036634,1734649838371,-500.0,0.00023972,4]
[346036635,1734649838381,-500.0,0.00023972,4]
[346036636,1734649838390,-500.0,0.00023972,4]
[346036637,1734649838400,-500.0,0.00023972,4]
[346036638,1734649838410,-500.0,0.00023972,2]
[346036639,1734649838420,-500.0,0.00023972,4]
[346036640,1734649838429,-500.0,0.00023972,4]
[346036641,1734649838439,-500.0,0.00023972,4]
[346036642,1734649838449,-397.23826319,0.00023972,4]
[346036643,1734649838462,-102.76173681,0.00023972,4]
[346036644,1734649838471,-500.0,0.00023972,4]
[346036645,1734649838481,-500.0,0.00023972,4]
[346036646,1734649838490,-500.0,0.00023972,4]
[346036647,1734649838500,-500.0,0.00023972,4]
[346036648,1734649838509,-500.0,0.00023972,4]
[346036649,1734649838519,-0.17688997,0.00023972,4]
[346036652,1734649838531,-499.82311003,0.00023972,4]
[346036654,1734649838540,-286.54188897,0.00023972,4]
[346036656,1734649838551,-213.45811103,0.00023972,4]
[346036658,1734649838560,-500.0,0.00023972,4]
[346036660,1734649838569,-17.06788857,0.00023972,4]
[346036663,1734649838588,-482.93211143,0.00023972,4]
[346036665,1734649838598,-500.0,0.00023972,4]
[346036667,1734649838610,-500.0,0.00023972,4]
[346036669,1734649838620,-137.38744287,0.00023972,4]
[346036671,1734649838633,-362.61255713,0.00023972,4]
[346036673,1734649838643,-394.88744287,0.00023972,4]
[346036674,1734649838654,-105.11255713,0.00023972,4]
[346036675,1734649838664,-500.0,0.00023972,4]
[346036676,1734649838673,-500.0,0.00023972,4]
[346036677,1734649838682,-500.0,0.00023972,4]
[346036678,1734649838692,-500.0,0.00023972,4]
[346036679,1734649838702,-7500.0,0.00023972,2]
[346036680,1734649838711,-159.88454669,0.00023973,2]
[346036681,1734649838721,-799.0,0.00023973,2]
[346036682,1734649838730,-501.02188555,0.00023973,2]
[346036683,1734649838740,-226.9994698,0.00023973,2]
[346036684,1734649838750,-154.09,0.00023989,2]
[346036685,1734649838759,-390.23583899,0.00023989,2]
[346036686,1734649838769,-154.09,0.0002399,2]
[346036687,1734649838778,-154.09,0.0002399,2]
[346036688,1734649838787,-154.09,0.0002399,2]
[346036689,1734649838797,-154.09,0.0002399,2]
[346036690,1734649838807,-154.09,0.0002399,2]
[346036691,1734649838818,-154.09,0.0002399,2]
[346036692,1734649838827,-154.09,0.0002399,2]
[346036693,1734649838839,-154.09,0.0002399,2]
[346036694,1734649838848,-154.09,0.0002399,2]
[346036695,1734649838858,-154.09,0.0002399,2]
[346036696,1734649838867,-154.09,0.0002399,2]
[346036697,1734649838877,-390.23583899,0.0002399,2]
[346036698,1734649838887,-390.23583899,0.0002399,2]
[346036699,1734649838897,-500.0,0.00023992,4]
[346036700,1734649838907,-500.0,0.00023992,4]
[346036701,1734649838918,-500.0,0.00023992,4]
[346036702,1734649838930,-500.0,0.00023992,4]
[346036703,1734649838940,-435.88,0.00023992,4]
[346036704,1734649838950,-277.15,0.00023992,4]
[346036705,1734649838961,-500.0,0.00023992,2]
[346036706,1734649838970,-500.0,0.00023992,4]
[346036707,1734649838981,-537.26,0.00023992,4]
[346036708,1734649838990,-500.0,0.00023992,4]
[346036709,1734649839000,-500.0,0.00023992,4]
[346036710,1734649839009,-500.0,0.00023992,4]
[346036711,1734649839019,-500.0,0.00023992,4]
[346036712,1734649839029,-500.0,0.00023992,4]
[346036713,1734649839039,-500.0,0.00023992,4]
[346036714,1734649839049,-500.0,0.00023992,4]
[346036715,1734649839059,-1025.98,0.00023992,4]
[346036716,1734649839068,-3234.48,0.00023992,4]
[346036717,1734649839077,-500.0,0.00023992,4]
[346036718,1734649839087,-500.0,0.00023992,4]
[346036719,1734649839098,-500.0,0.00023992,4]
[346036720,1734649839108,-500.0,0.00023992,4]
[346036721,1734649839118,-500.0,0.00023992,4]
[346036722,1734649839127,-165.39,0.00023992,4]
[346036723,1734649839136,-498.66,0.00023992,4]
[346036724,1734649839146,-970.74,0.00023992,4]
[346036725,1734649839156,-500.0,0.00023992,4]
[346036726,1734649839165,-500.0,0.00023992,4]
[346036727,1734649839175,-543.82,0.00023992,4]
[346036728,1734649839185,-500.0,0.00023992,4]
[346036729,1734649839195,-500.0,0.00023993,4]
[346036730,1734649839204,-500.0,0.00023993,4]
[346036731,1734649839214,-500.0,0.00023993,4]
[346036732,1734649839223,-222.69678698,0.00023993,4]
[346036733,1734649839241,-277.30321302,0.00023993,4]
[346036734,1734649839251,-511.82,0.00023993,4]
[346036735,1734649839260,-500.0,0.00023993,4]
[346036736,1734649839270,-500.0,0.00023993,4]
[346036737,1734649839280,-629.71562954,0.00023993,4]
[346036738,1734649839289,-503.18069212,0.00023993,7]
[346036739,1734649839299,-500.0,0.00023993,4]
[346036740,1734649839308,-500.0,0.00023993,4]
[346036741,1734649839317,-500.0,0.00023993,4]
[346036742,1734649839327,-500.0,0.00023993,4]
[346036743,1734649839337,-500.0,0.00023993,4]
[346036744,1734649839347,-500.0,0.00023993,4]
[346036745,1734649839357,-500.0,0.00023993,4]
[346036746,1734649839370,-500.0,0.00023993,4]
[346036747,1734649839380,-500.0,0.00023993,4]
[346036748,1734649839390,-500.0,0.00023993,4]
[346036749,1734649839399,-500.0,0.00023993,4]
[346036750,1734649839410,-500.0,0.00023993,4]
[346036751,1734649839419,-500.0,0.00023993,4]
[346036752,1734649839428,-500.0,0.00023993,4]
[346036753,1734649839438,-500.0,0.00023993,4]
[346036754,1734649839447,-500.0,0.00023993,4]
[346036755,1734649839457,-500.0,0.00023993,4]
[346036756,1734649839466,-500.0,0.00023993,4]
[346036757,1734649839475,-500.0,0.00023993,4]
[346036758,1734649839485,-500.0,0.00023993,4]
[346036759,1734649839494,-500.0,0.00023993,4]
[346036760,1734649839504,-500.0,0.00023993,4]
[346036761,1734649839550,-500.0,0.00023993,4]
[346036762,1734649839560,-500.0,0.00023993,4]
[346036763,1734649839570,-500.0,0.00023993,4]
[346036764,1734649839579,-500.0,0.00023993,4]
[346036765,1734649839588,-500.0,0.00023993,4]
[346036766,1734649839598,-633.52,0.00023993,4]
[346036767,1734649839609,-534.62,0.00023993,4]
[346036768,1734649839618,-616.06746607,0.00023993,4]
[346036769,1734649839628,-491.12124179,0.00023993,4]
[346036770,1734649839637,-500.0,0.00023993,4]
[346036771,1734649839646,-500.0,0.00023993,4]
[346036772,1734649839656,-500.0,0.00023993,4]
[346036773,1734649839666,-500.0,0.00023993,4]
[346036774,1734649839676,-544.25,0.00023993,4]
[346036775,1734649839686,-500.0,0.00023993,4]
[346036776,1734649839695,-500.0,0.00023993,4]
[346036777,1734649839705,-500.0,0.00023993,4]
[346036778,1734649839715,-500.0,0.00023993,4]
[346036779,1734649839724,-500.0,0.00023993,4]
[346036780,1734649839734,-500.0,0.00023993,4]
[346036781,1734649839744,-500.0,0.00023993,4]
[346036782,1734649839753,-500.0,0.00023993,4]
[346036783,1734649839763,-500.0,0.00023993,4]
[346036784,1734649839772,-500.0,0.00023993,4]
[346036785,1734649839782,-500.0,0.00023993,4]
[346036786,1734649839791,-500.0,0.00023993,4]
[346036787,1734649839801,-500.0,0.00023993,4]
[346036788,1734649839811,-500.0,0.00023993,4]
[346036789,1734649839820,-502.54509252,0.00023993,4]
[346036790,1734649839830,-500.0,0.00023993,4]
[346036791,1734649839839,-500.0,0.00023993,4]
[346036792,1734649839848,-500.0,0.00023993,4]
[346036793,1734649839863,-628.79,0.00023993,4]
[346036794,1734649839872,-531.27709285,0.00023993,4]
[346036795,1734649839882,-500.0,0.00023993,4]
[346036796,1734649839891,-500.0,0.00023993,4]
[346036797,1734649839900,-500.0,0.00023993,4]
[346036798,1734649839910,-500.0,0.00023993,4]
[346036799,1734649839919,-500.0,0.00023993,4]
[346036800,1734649839929,-500.0,0.00023993,4]
[346036801,1734649839938,-500.0,0.00023993,4]
[346036802,1734649839947,-500.0,0.00023993,4]
[346036803,1734649839957,-151.0,0.00023993,7]
[346036804,1734649839967,-151.0,0.00023993,7]
[346036805,1734649839976,-151.0,0.00023993,7]
[346036806,1734649839985,-151.0,0.00023993,7]
[346036807,1734649839994,-230.40406101,0.00023999,2]
[346036808,1734649840004,-500.0,0.00023999,2]
[346036809,1734649840013,-500.0,0.00023999,2]
[346036810,1734649840023,-500.0,0.00023999,2]
[346036811,1734649840032,-500.0,0.00023999,2]
[346036812,1734649840042,-477.72720345,0.00023999,2]
[346036813,1734649840051,-300.0,0.00023999,2]
[346036814,1734649840062,-666.0,0.00023999,2]
[346036815,1734649840072,-500.0,0.00023999,2]
[346036816,1734649840081,-980.05108,0.00023999,2]
[346036817,1734649840091,-999.0,0.00023999,2]
[346036818,1734649840102,-7500.0,0.00023999,2]
[346036819,1734649840111,-7500.0,0.00023999,2]
[346036820,1734649840120,-6582.55057084,0.00023999,2]
[346036822,1734649840130,-732.0,0.00024,2]
[346036824,1734649840139,-106338.48122555,0.00024,3]
[346036826,1734649840148,-3035093.10090966,0.00024,5]
[346036828,1734649840157,-1164.0,0.00024,2]
[346036830,1734649840166,-2000.0,0.00024,120]
[346036832,1734649840175,-2000.0,0.00024,2]
[346036834,1734649840184,-14017.89196933,0.00024,4]
[346036836,1734649840193,-10000.0,0.00024,2]
[346036838,1734649840202,-44042.77250569,0.00024,16]
[346036840,1734649840211,-2077.13861395,0.00024,2]
[346036842,1734649840220,-3304.706,0.00024,5]
[346036844,1734649840229,-10000.0,0.00024,2]
[346036846,1734649840238,-752.64966109,0.00024,2]
[346036848,1734649840247,-500.0,0.00024,7]
[346036850,1734649840257,-500.0,0.00024,7]
[346036852,1734649840266,-500.0,0.00024,7]
[346036854,1734649840275,-500.0,0.00024,7]
[346036856,1734649840284,-500.0,0.00024,7]
[346036858,1734649840294,-500.0,0.00024,7]
[346036860,1734649840303,-500.0,0.00024,7]
[346036862,1734649840312,-500.0,0.00024,7]
[346036864,1734649840320,-500.0,0.00024,7]
[346036866,1734649840329,-500.0,0.00024,7]
[346036868,1734649840338,-500.0,0.00024,7]
[346036869,1734649840347,-500.0,0.00024,7]
[346036871,1734649840358,-500.0,0.00024,7]
[346036873,1734649840370,-500.0,0.00024,7]
[346036876,1734649840380,-459.85,0.00024,7]
[346036878,1734649840390,-500.0,0.00024,7]
[346036879,1734649840400,-1000.0,0.00024,2]
[346036881,1734649840410,-300.0,0.00024,2]
[346036883,1734649840419,-2000.0,0.00024,2]
[346036886,1734649840430,-200.0,0.00024,2]
[346036888,1734649840439,-151.0,0.00024,7]
[346036890,1734649840451,-151.0,0.00024,7]
[346036892,1734649840463,-150.0,0.00024,4]
[346036894,1734649840472,-151.0,0.00024,7]
[346036895,1734649840481,-151.0,0.00024,7]
[346036897,1734649840490,-151.0,0.00024,7]
[346036899,1734649840499,-151.0,0.00024,7]
[346036901,1734649840508,-151.0,0.00024,7]
[346036903,1734649840517,-151.0,0.00024,7]
[346036905,1734649840527,-151.0,0.00024,7]
[346036907,1734649840537,-151.0,0.00024,7]
[346036909,1734649840546,-151.0,0.00024,7]
[346036911,1734649840556,-151.0,0.00024,7]
[346036913,1734649840565,-151.0,0.00024,7]
[346036915,1734649840574,-151.0,0.00024,7]
[346036917,1734649840583,-252.3,0.00024,2]
[346036919,1734649840592,-15760.25074111,0.00024015,2]
[346036921,1734649840601,-506.10673613,0.00024036,2]
[346036923,1734649840611,-150.0,0.00024053,2]
[346036925,1734649840620,-579.16,0.00024055,2]
[346036927,1734649840629,-1538.04,0.00024055,2]
[346036930,1734649840642,-436.69,0.00024055,2]
[346036932,1734649840651,-436.69,0.00024055,2]
[346036934,1734649840660,-257.36945623,0.00024067,2]
[346036936,1734649840670,-5614.5999437,0.00024072,2]
[346036938,1734649840679,-378.14219748,0.00024072,2]
[346036940,1734649840688,-181.09501304,0.00024082,2]
[346036942,1734649840697,-210.58763,0.00024088,7]
[346036944,1734649840706,-151.0,0.00024093,7]
[346036945,1734649840715,-506.10673613,0.00024114,2]
[346036946,1734649840724,-15760.25074111,0.00024127,2]
[346036947,1734649840733,-151.0,0.00024133,7]
[346036948,1734649840742,-151.0,0.00024133,7]
[346036949,1734649840751,-151.0,0.00024133,7]